lending/lending_fUSD_20250224
["ID","MTS","AMOUNT","RATE_DAILY","PERIOD"]
[354346102,1740438639268,-1630.784808,0.00016655,2]
[354346105,1740438639278,-154.46196945,0.00016667,2]
[354346106,1740438639288,-156.000702,0.00016684,2]
[354346109,1740438639297,-1040.88552,0.00016684,2]
[354346110,1740438639306,-1630.784808,0.00016684,2]
[354346113,1740438639316,-152.307,0.00016767,2]
[354346115,1740438639326,-1040.88552,0.00016767,2]
[354346117,1740438639336,-1630.784808,0.00016767,2]
[354346119,1740438639345,-152.307,0.00016849,2]
[354346121,1740438639355,-1040.88552,0.00016849,2]
[354346123,1740438639367,-1630.784808,0.00016849,2]
[354346125,1740438639377,-152.307,0.00016931,2]
[354346127,1740438639387,-156.000702,0.00016931,2]
[354346129,1740438639398,-1040.88552,0.00016931,2]
[354346131,1740438639407,-1630.784808,0.00016931,2]
[354346133,1740438639417,-1040.88552,0.00017013,2]
[354346135,1740438639427,-1630.784808,0.00017013,2]
[354346137,1740438639438,-152.307,0.00017095,2]
[354346139,1740438639447,-1040.88552,0.00017095,2]
[354346141,1740438639457,-1630.784808,0.00017095,2]
[354346143,1740438639466,-152.307,0.00017178,2]
[354346145,1740438639475,-156.000702,0.00017178,2]
[354346147,1740438639484,-630.7328747,0.00017178,2]
[354346149,1740438639497,-410.1526453,0.00017178,2]
[354346151,1740438639506,-1262.23294911,0.00017178,2]
[354346153,1740438639518,-368.55185889,0.00017178,2]
[354346155,1740438639529,-174.71037224,0.000172,2]
[354346157,1740438639539,-1040.88552,0.0001726,2]
[354346159,1740438639548,-1630.784808,0.0001726,2]
[354346161,1740438639558,-614.49,0.0001726,4]
[354346163,1740438639569,-152.307,0.00017342,2]
[354346165,1740438639579,-1040.88552,0.00017342,2]
[354346167,1740438639589,-1630.784808,0.00017342,2]
[354346169,1740438639599,-152.307,0.00017424,2]
[354346171,1740438639609,-156.000702,0.00017424,2]
[354346173,1740438639622,-1040.88552,0.00017424,2]
[354346175,1740438639633,-1630.784808,0.00017424,2]
[354346177,1740438639642,-152.307,0.00017506,2]
[354346179,1740438639652,-1040.88552,0.00017506,2]
[354346181,1740438639662,-1630.784808,0.00017506,2]
[354346183,1740438639671,-1040.88552,0.00017589,2]
[354346185,1740438639681,-1630.784808,0.00017589,2]
[354346187,1740438639691,-152.307,0.00017671,2]
[354346188,1740438639701,-156.000702,0.00017671,2]
[354346189,1740438639710,-1040.88552,0.00017671,2]
[354346190,1740438639720,-1630.784808,0.00017671,2]
[354346191,1740438639730,-500.0,0.00017707,2]
[354346192,1740438639740,-152.307,0.00017753,2]
[354346193,1740438639750,-1040.88552,0.00017753,2]
[354346194,1740438639759,-1630.784808,0.00017753,2]
[354346195,1740438639769,-152.307,0.00017835,2]
[354346196,1740438639779,-1040.88552,0.00017835,2]
[354346197,1740438639788,-1630.784808,0.00017835,2]
[354346198,1740438639798,-4614.81385745,0.000179,2]
[354346199,1740438639807,-156.000702,0.00017917,2]
[354346200,1740438639816,-1040.88552,0.00017917,2]
[354346201,1740438639826,-1630.784808,0.00017917,2]
[354346202,1740438639837,-420.0,0.00017963,2]
[354346204,1740438639847,-10000.0,0.00018,2]
[354346206,1740438639856,-152.307,0.00018,2]
[354346208,1740438639868,-1040.88552,0.00018,2]
[354346210,1740438639878,-1630.784808,0.00018,2]
[354346212,1740438639888,-181.80138505,0.00018082,2]
[354346214,1740438639897,-152.307,0.00018082,2]
[354346216,1740438639907,-1040.88552,0.00018082,2]
[354346218,1740438639917,-1630.784808,0.00018082,2]
[354346220,1740438639927,-152.307,0.00018164,2]
[354346222,1740438639938,-156.000702,0.00018164,2]
[354346224,1740438639948,-1040.88552,0.00018164,2]
[354346226,1740438639958,-1630.784808,0.00018164,2]
[354346228,1740438639968,-1040.88552,0.00018246,2]
[354346230,1740438639977,-1630.784808,0.00018246,2]
[354346232,1740438639987,-1068.22391286,0.00018255,2]
[354346234,1740438639997,-152.307,0.00018328,2]
[354346236,1740438640007,-1040.88552,0.00018328,2]
[354346238,1740438640017,-1630.784808,0.00018328,2]
[354346240,1740438640028,-156.46,0.0001863,2]
[354346242,1740438640040,-1000.0,0.00019178,7]
[354346244,1740438640050,-500.0,0.00019444,2]
[354346246,1740438640060,-1000.0,0.00019452,7]
[354346248,1740438640070,-500.0,0.00019544,2]
[354346250,1740438640081,-587.0,0.00019631,2]
[354346252,1740438640090,-3153.202,0.00019644,2]
[354346254,1740438640100,-172.768,0.00019644,2]
[354346257,1740438640110,-500.0,0.00019644,2]
[354346260,1740438640124,-500.0,0.00019744,2]
[354346262,1740438640134,-1000.0,0.00019797,2]
[354346264,1740438640144,-449.31,0.00020432,2]
[354346266,1740438640153,-218.44,0.000206,2]
[354346269,1740438640163,-823.0,0.00021454,2]
[354346270,1740438640172,-200.0,0.00021562,2]
[354346272,1740438640182,-200.0,0.00022259,2]
[354346275,1740438640192,-150.0,0.00022268,2]
[354346277,1740438640203,-1000.0,0.00022272,2]
[354346279,1740438640212,-896.0,0.00022273,2]
[354346281,1740438640222,-250.0,0.00022391,2]
[354346285,1740438640232,-600.0,0.00022494,2]
[354346287,1740438640242,-200.0,0.000225,2]
[354346289,1740438640251,-215.44,0.00022584,30]
[354346290,1740438640261,-449.31,0.00022696,2]
[354346293,1740438640271,-7095.92,0.00022798,2]
[354346294,1740438640280,-167.02,0.00022951,2]
[354346296,1740438640290,-2000.0,0.0002307,2]
[354346299,1740438640300,-157.26,0.00023836,2]
[354346301,1740438640311,-181.12,0.00023901,2]
[354346303,1740438640320,-218.49,0.000241,2]
[354346305,1740438640330,-300.0,0.00024612,2]
[354346307,1740438640340,-722.46787309,0.00024747,2]
[354346310,1740438640354,-277.53212691,0.00024747,2]
[354346313,1740438640365,-449.31,0.0002496,2]
[354346317,1740438640375,-1000.0,0.00025152,2]
[354346320,1740438640385,-215.44,0.00025168,30]
[354346322,1740438640395,-168.99,0.00025224,120]
[354346324,1740438640405,-159.3,0.00025408,2]
[354346326,1740438640415,-3235.71,0.00025683,2]
[354346328,1740438640425,-300.0,0.00025981,2]
[354346330,1740438640435,-1477.15,0.00026438,2]
[354346332,1740438640446,-266.9069,0.00026456,2]
[354346334,1740438640457,-2376.3368,0.00026456,2]
[354346336,1740438640467,-1858.94,0.00026556,2]
[354346338,1740438640477,-1153.13951127,0.00026556,2]
[354346340,1740438640489,-4933.22093471,0.00026556,2]
[354346343,1740438640501,-3178.42346311,0.00026556,2]
[354346345,1740438640512,-1724.51378392,0.00026556,2]
[354346347,1740438640524,-484.37445308,0.00026556,2]
[354346349,1740438640535,-521.5441782,0.00026556,2]
[354346351,1740438640547,-2109.40417406,0.00026556,2]
[354346380,1740438640815,-302.177488,0.00026556,2]
[354346385,1740438640852,-841.62201365,0.00026556,2]
[354346387,1740438640862,-609.38835287,0.00027016,120]
[354346389,1740438640874,-1390.61164713,0.00027016,120]
[354346391,1740438640884,-366.85598663,0.00027165,2]
[354346399,1740438640958,-11553.45401337,0.00027165,2]
[354346401,1740438640968,-1000.0,0.00027222,2]
[354346403,1740438640978,-449.31,0.00027224,2]
[354346405,1740438640987,-500.0,0.0002735,2]
[354346407,1740438640997,-2639.56,0.0002735,2]
[354346409,1740438641008,-14693.56,0.00027397,2]
[354346411,1740438641022,-28459.88,0.00027397,2]
[354346413,1740438641032,-1235.46,0.00027397,2]
[354346415,1740438641042,-1787.0,0.00027527,2]
[354346418,1740438641052,-782.0,0.00027527,2]
[354346420,1740438641063,-539.0,0.00027527,2]
[354346422,1740438641073,-1266.0,0.00027527,2]
[354346424,1740438641082,-908.0,0.00027527,2]
[354346426,1740438641092,-4024.0,0.00027527,2]
[354346428,1740438641102,-3917.0,0.00027527,2]
[354346429,1740438641113,-150.0,0.00027527,2]
[354346431,1740438641123,-215.44,0.00027752,30]
[354346433,1740438641132,-1110.3273203,0.00028103,2]
[354346435,1740438641142,-2073.39136623,0.00028193,3]
[354346438,1740438641152,-95025.96131403,0.00028203,2]
[354346439,1740438641162,-156.46,0.00028493,2]
[354346442,1740438641172,-1470.0,0.000287,5]
[354346444,1740438641183,-161.536775,0.000288,30]
[354346446,1740438641193,-18053.6612092,0.00029136,2]
[354346448,1740438641202,-1110.3273203,0.00029236,2]
[354346450,1740438641212,-200.0,0.00029283,2]
[354346452,1740438641223,-168.99,0.00029429,120]
[354346454,1740438641232,-449.31,0.00029488,2]
[354346456,1740438641242,-1000.0,0.00029696,2]
[354346458,1740438641252,-14118.22809491,0.00030154,2]
[354346460,1740438641265,-2159.999996,0.00030154,2]
[354346462,1740438641276,-379.23261232,0.00030154,2]
[354346465,1740438641294,-900.0,0.00030154,2]
[354346467,1740438641306,-496.20050591,0.00030154,2]
[354346469,1740438641315,-691.13045541,0.0003019,3]
[354346471,1740438641325,-150.0,0.000302,2]
[354346473,1740438641335,-2024.0,0.000302,2]
[354346475,1740438641345,-1272.0,0.000302,2]
[354346477,1740438641355,-215.44,0.00030336,30]
[354346479,1740438641365,-1110.3273203,0.00030369,2]
[354346481,1740438641376,-320.23647887,0.00031082,2]
[354346483,1740438641386,-1464.13653951,0.00031172,2]
[354346485,1740438641398,-324.185,0.00031172,2]
[354346489,1740438641418,-288.18880667,0.00031172,2]
[354346491,1740438641430,-302.8455,0.00031172,2]
[354346493,1740438641442,-780.6947148,0.00031172,2]
[354346891,1740438645470,-13803.41480997,0.00031172,2]
[354346894,1740438645484,-1090.19583819,0.00031172,2]
[354346896,1740438645493,-896.0,0.00031182,2]
[354346898,1740438645503,-833.80416191,0.00031502,2]
[354346900,1740438645515,-276.52315839,0.00031502,2]
[354346902,1740438645525,-449.31,0.00031752,2]
[354346904,1740438645535,-159.3,0.00031855,2]
[354346906,1740438645544,-4837.91318787,0.0003199,3]
[354346908,1740438645554,-200.0,0.00032,30]
[354346911,1740438645564,-5953.35363682,0.00032,4]
[354346917,1740438645588,-77288.83975104,0.00032,4]
[354346920,1740438645598,-200.0,0.00032,120]
[354346923,1740438645608,-18053.66120914,0.00032191,2]
[354346926,1740438645619,-1235.31552561,0.00032535,4]
[354346929,1740438645628,-1110.3273203,0.00032635,2]
[354346932,1740438645638,-1382.26091082,0.00032766,3]
[354346935,1740438645648,-500.0,0.00032876,20]
[354346938,1740438645658,-215.44,0.0003292,120]
[354346940,1740438645668,-18053.66120914,0.00033209,2]
[354346942,1740438645678,-776.4,0.00033288,2]
[354346943,1740438645687,-776.4,0.00033288,2]
[354346944,1740438645697,-776.4,0.00033288,2]
[354346945,1740438645707,-150.0,0.00033288,7]
[354346946,1740438645716,-150.0,0.00033288,7]
[354346947,1740438645726,-150.0,0.00033288,7]
[354346948,1740438645736,-150.0,0.00033288,7]
[354346949,1740438645746,-150.0,0.00033288,7]
[354346950,1740438645755,-691.13045541,0.0003338,3]
[354346951,1740438645765,-1791.0,0.00033399,2]
[354346952,1740438645775,-152.0,0.00033551,3]
[354346953,1740438645785,-168.99,0.00033633,120]
[354346955,1740438645794,-150.0,0.00033658,7]
[354346956,1740438645804,-500.0,0.00033698,25]
[354346958,1740438645814,-691.13045541,0.00033709,3]
[354346961,1740438645824,-5035.74,0.00033719,2]
[354346963,1740438645834,-1791.0,0.00033743,2]
[354346965,1740438645843,-1110.3273203,0.00033768,2]
[354346966,1740438645852,-691.13045541,0.0003389,3]
[354346968,1740438645862,-154.64400633,0.0003389,3]
[354346970,1740438645873,-9970.0938,0.000339,2]
[354346973,1740438645883,-5963.1997,0.000339,2]
[354346975,1740438645892,-9576.1956,0.000339,2]
[354346977,1740438645903,-25844.71228109,0.000339,2]
[354346979,1740438645915,-2546.2,0.000339,2]
[354346981,1740438645927,-5328.70664685,0.000339,2]
[354346984,1740438645947,-3824.9488399,0.000339,2]
[354346986,1740438645958,-5997.98957512,0.000339,2]
[354346988,1740438645970,-1397.51918875,0.000339,2]
[354346991,1740438645981,-250.5000001,0.000339,2]
[354347091,1740438646582,-1677.67599982,0.000339,2]
[354347093,1740438646594,-765.67239713,0.000339,2]
[354347095,1740438646606,-1736.82760287,0.000339,2]
[354347098,1740438646621,-964.64,0.000339,2]
[354347110,1740438646743,-1223.1491945,0.000339,2]
[354347113,1740438646756,-745.9882928,0.000339,2]
[354347115,1740438646770,-11533.521,0.000339,2]
[354347129,1740438646902,-4648.1,0.000339,2]
[354350656,1740439015890,222.0,0.0002,120]
[354350659,1740439222127,151.92,8.767e-05,2]
[354350740,1740439832063,-445.17975064,9.828e-05,2]
[354350741,1740439832074,-800.0,9.9e-05,3]
[354350742,1740439832085,-150.0,9.998e-05,2]
[354350743,1740439832095,-6308.35979924,9.999e-05,2]
[354350744,1740439832105,-404.17697157,9.999e-05,2]
[354350745,1740439832115,-411.63196713,9.999e-05,2]
[354350747,1740439832127,-88.36803287,9.999e-05,2]
[354350748,1740439832137,-500.0,9.999e-05,2]
[354350749,1740439832147,-345.97593689,9.999e-05,2]
[354350750,1740439832156,-500.0,9.999e-05,2]
[354350751,1740439832166,-500.0,9.999e-05,2]
[354350753,1740439832177,-500.0,9.999e-05,2]
[354350754,1740439832190,-500.0,9.999e-05,2]
[354350756,1740439832201,-500.0,9.999e-05,2]
[354350758,1740439832211,-500.0,9.999e-05,2]
[354350760,1740439832222,-500.0,9.999e-05,2]
[354350762,1740439832231,-500.0,9.999e-05,2]
[354350764,1740439832240,-3934.33120338,0.0001,2]
[354350776,1740439832358,-282.72282812,0.0001,2]
[354350778,1740439832370,-473.33872835,0.0001,2]
[354350781,1740439832382,-1158.50642082,0.0001,2]
[354350783,1740439832395,-4287.90357461,0.0001,2]
[354350793,1740439832458,-3342.09999,0.0001,2]
[354350798,1740439832480,-19676.35,0.0001,2]
[354350802,1740439832493,-554.508,0.0001,2]
[354350805,1740439832506,-3003.66428819,0.0001,2]
[354350811,1740439832528,-13417.72046414,0.0001,2]
[354350813,1740439832540,-721.64177466,0.0001,2]
[354350815,1740439832553,-640.05831031,0.0001,2]
[354350817,1740439832565,-6058.97296879,0.0001,2]
[354350821,1740439832588,-1124.49855846,0.0001,2]
[354351275,1740439837461,-472.46923658,0.0001,2]
[354351294,1740439837621,-6819.08985609,0.0001,2]
[354351300,1740439837674,-280.84338572,0.0001,2]
[354351306,1740439837724,-9310.00213647,0.0001,2]
[354351309,1740439837736,-1274.50000001,0.0001,2]
[354351314,1740439837776,-661.29448133,0.0001,2]
[354351316,1740439837787,-656.73318911,0.0001,2]
[354351507,1740439839682,-12684.92704591,0.0001,2]
[354351538,1740439839970,-371.834,0.0001,2]
[354351540,1740439839982,-467.0895958,0.0001,2]
[354351543,1740439839994,-46355.0346,0.0001,2]
[354351545,1740439840005,-263.02284024,0.0001,2]
[354351547,1740439840017,-504.42,0.0001,2]
[354351557,1740439840104,-323.20347792,0.0001,2]
[354351559,1740439840115,-648.2189714,0.0001,2]
[354351881,1740439843014,-498.57361333,0.0001,2]
[354351883,1740439843026,-9848.52415957,0.0001,2]
[354351885,1740439843038,-3128.21321425,0.0001,2]
[354351889,1740439843058,-4620.05491739,0.0001,2]
[354351893,1740439843095,-341.74056447,0.0001,2]
[354352089,1740439845678,-2431.74673012,0.0001,2]
[354352095,1740439845741,-740.8892888,0.0001,2]
[354353607,1740440426247,157.6,8.767e-05,2]
[354353611,1740440715970,169.16045576,0.00020855,120]
[354353618,1740440880844,-150.0,9.799e-05,2]
[354353619,1740440885960,-150.0,9.8e-05,2]
[354353620,1740440888535,-150.0,9.8e-05,2]
[354353642,1740440977593,-1187.1117743,9.8e-05,2]
[354353643,1740440977636,-1187.1117743,9.8e-05,2]
[354353644,1740440977671,-950.2794514,9.8e-05,2]
[354353645,1740440977696,-171.77,9.8e-05,2]
[354353646,1740440977722,-65.0623229,9.8e-05,3]
[354353647,1740440977758,-734.9376771,9.8e-05,3]
[354353648,1740440977788,-177.87927199,9.8e-05,2]
[354353649,1740440977817,-274.29482521,9.9e-05,3]
[354353650,1740440978298,-1187.1117743,9.9e-05,3]
[354353651,1740440978331,-238.59340049,9.9e-05,3]
[354353652,1740440978360,-948.51837381,9.9e-05,2]
[354353653,1740440978397,-1187.1117743,9.9e-05,2]
[354353654,1740440978438,-1187.1117743,9.9e-05,2]
[354353655,1740440978937,-1187.1117743,9.9e-05,2]
[354353656,1740440978971,-1187.1117743,9.9e-05,2]
[354353657,1740440979022,-1187.1117743,9.9e-05,2]
[354353658,1740440979062,-1061.09022756,9.9e-05,2]
[354353659,1740440979103,-1187.1117743,9.9e-05,2]
[354353660,1740440979136,-1187.1117743,9.9e-05,2]
[354353661,1740440979173,-1187.1117743,9.9e-05,2]
[354353662,1740440979217,-1187.1117743,9.9e-05,2]
[354353663,1740440979266,-1187.1117743,9.9e-05,2]
[354353664,1740440979337,-1187.1117743,9.9e-05,2]
[354353682,1740441031787,-300.0,9.899e-05,2]
[354353683,1740441031797,-985.70283055,9.9e-05,2]
[354353684,1740441031809,-552.91371413,9.9e-05,2]
[354353685,1740441031826,-1945.55950178,9.9e-05,2]
[354353687,1740441031838,-349.990002,9.9e-05,2]
[354353688,1740441031850,-281.6899999,9.9e-05,2]
[354353690,1740441031861,-4681.29720341,9.9e-05,2]
[354353692,1740441031873,-392.15122956,9.9e-05,2]
[354353693,1740441031883,-549.81331645,9.9e-05,2]
[354353694,1740441031900,-4291.84788355,9.9e-05,2]
[354353695,1740441031911,-484.1275,9.9e-05,2]
[354353696,1740441031922,-150.0,9.973e-05,2]
[354353697,1740441031932,-500.0,9.973e-05,2]
[354353698,1740441031941,-500.0,9.973e-05,2]
[354353699,1740441031951,-1152.10586708,9.999e-05,3]
[354353700,1740441031961,-2502.48621906,9.999e-05,2]
[354353701,1740441031970,-150.0,9.999e-05,2]
[354353702,1740441031980,-469.23866742,9.999e-05,2]
[354353703,1740441031991,-152.98648669,9.999e-05,2]
[354353704,1740441032000,-500.0,9.999e-05,2]
[354353705,1740441032010,-500.0,9.999e-05,2]
[354353706,1740441032020,-481.38298359,9.999e-05,2]
[354353707,1740441032030,-500.0,9.999e-05,2]
[354353708,1740441032039,-347.50328757,9.999e-05,2]
[354353709,1740441032049,-500.0,9.999e-05,2]
[354353710,1740441032058,-388478.2677311,0.0001,2]
[354353711,1740441032071,-413.87648906,0.0001,2]
[354353712,1740441032083,-163933.19588511,0.0001,2]
[354353713,1740441032097,-74105.89224693,0.0001,2]
[354353714,1740441032109,-393618.97967912,0.0001,2]
[354353715,1740441032119,-52072.07604036,0.0001,2]
[354353716,1740441032129,-251431.55810687,0.0001,2]
[354353717,1740441032141,-628.42,0.0001,2]
[354353718,1740441032153,-466805.73208309,0.0001,2]
[354353719,1740441032162,-204.83595694,0.0001,2]
[354353721,1740441032172,-280.98669599,0.0001,2]
[354353723,1740441032181,-1320.41253,0.0001,2]
[354353725,1740441032191,-2600.0,0.0001,3]
[354353727,1740441032201,-177.87927199,0.0001,2]
[354353728,1740441032210,-320.52676082,0.0001,2]
[354353730,1740441032220,-393.25276488,0.0001,2]
[354353732,1740441032230,-199.23708923,0.0001,2]
[354353734,1740441032240,-1000.0,0.00010521,2]
[354353736,1740441032250,-61588.88694639,0.00010618,2]
[354353738,1740441032260,-150.0,0.00010779,2]
[354353740,1740441032270,-150.0,0.00010779,2]
[354353742,1740441032280,-420.0,0.00010889,2]
[354353744,1740441032290,-150.0,0.0001089,2]
[354353746,1740441032300,-165.0750643,0.000109,2]
[354353748,1740441032310,-1000.0,0.00010942,2]
[354353750,1740441032320,-200.0,0.00010959,2]
[354353752,1740441032330,-500.0,0.00010998,2]
[354353754,1740441032340,-255.0,0.00010999,2]
[354353756,1740441032350,-399.74,0.00011008,2]
[354353758,1740441032359,-9230.55479095,0.00011099,2]
[354353760,1740441032369,-1171.4490329,0.00011099,2]
[354353762,1740441032379,-1320.41254,0.000111,2]
[354353764,1740441032388,-400.0,0.00011507,2]
[354353766,1740441032397,-1500.0,0.00011522,2]
[354353768,1740441032407,-587.0,0.00011978,2]
[354353770,1740441032416,-433.0,0.00012099,2]
[354353772,1740441032427,-908.59,0.00012114,2]
[354353774,1740441032436,-4649.57399976,0.000122,2]
[354353776,1740441032446,-250.0,0.00012221,2]
[354353778,1740441032456,-157.97057217,0.000123,2]
[354353780,1740441032465,-1000.0,0.0001231,2]
[354353782,1740441032475,-1320.41254,0.0001235,2]
[354353784,1740441032485,-294.94598608,0.000125,2]
[354353786,1740441032494,-469.21555428,0.000125,3]
[354353788,1740441032503,-1171.44903281,0.00012678,2]
[354353790,1740441032513,-9230.55479087,0.00012678,2]
[354353792,1740441032523,-155.54,0.00013,2]
[354353794,1740441032532,-2664.48,0.00013064,2]
[354353796,1740441032541,-2000.0,0.00013113,2]
[354353798,1740441032551,-150.0,0.0001314,2]
[354353800,1740441032560,-823.0,0.00013176,2]
[354353802,1740441032571,-399.74,0.00013272,2]
[354353804,1740441032581,-44719.00508884,0.0001337,2]
[354353806,1740441032591,-23900.0,0.00013401,2]
[354353808,1740441032600,-12272.66830898,0.0001353,2]
[354353810,1740441032610,-475.07,0.00013584,2]
[354353812,1740441032620,-500.0,0.00013596,2]
[354353814,1740441032630,-165.54,0.000136,2]
[354353817,1740441032640,-1320.41254,0.000136,2]
[354353819,1740441032653,-1000.0,0.00013678,2]
[354353821,1740441032663,-200.0,0.00013699,2]
[354353823,1740441032673,-2000.0,0.00013771,2]
[354353825,1740441032682,-1500.0,0.00013916,2]
[354353827,1740441032692,-250.0,0.00013954,2]
[354353850,1740441032900,-200.0,0.00014091,2]
[354353853,1740441032927,-748.74,0.00014279,2]
[354353855,1740441032937,-200.0,0.0001432,2]
[354353857,1740441032947,-2244.73,0.00014321,2]
[354353859,1740441032957,-167.18,0.00014465,2]
[354353861,1740441032967,-500.0,0.00014493,2]
[354353863,1740441032977,-150.99,0.00014504,2]
[354353865,1740441032986,-5771.08,0.00014504,2]
[354353867,1740441032996,-9285.35,0.00014504,2]
[354353869,1740441033005,-150.99,0.00014504,2]
[354353871,1740441033015,-1116.93,0.00014504,2]
[354353873,1740441033025,-299.99,0.00014504,2]
[354353875,1740441033036,-293.42,0.00014504,2]
[354353877,1740441033046,-999.99,0.00014504,2]
[354353879,1740441033057,-1450.28,0.00014504,2]
[354353882,1740441033068,-3495.66,0.00014504,2]
[354353883,1740441033078,-181.12,0.00014639,2]
[354353885,1740441033088,-15229.0350508,0.000148,2]
[354353887,1740441033098,-1320.41253,0.0001485,2]
[354353889,1740441033108,-48710.3395913,0.000149,2]
[354353892,1740441033118,-1683.0,0.00015,3]
[354353894,1740441033128,-1000.0,0.00015045,2]
[354353896,1740441033139,-300.0,0.00015068,2]
[354353898,1740441033150,-280.98669599,0.00015217,2]
[354353900,1740441033162,-1171.44903281,0.00015456,2]
[354353902,1740441033172,-9230.55479087,0.00015456,2]
[354353904,1740441033181,-399.74,0.00015536,2]
[354353906,1740441033191,-1000.0,0.00015656,2]
[354353908,1740441033200,-165.54,0.00015866,2]
[354353910,1740441033211,-1124.92124136,0.000159,2]
[354353912,1740441033220,-1320.41254,0.000161,2]
[354353913,1740441033230,-1000.0,0.0001612,2]
[354353916,1740441033241,-1000.0,0.00016413,2]
[354353917,1740441033252,-155.16,0.00016438,2]
[354353920,1740441033263,-300.0,0.00016438,2]
[354353922,1740441033275,-157.97057214,0.00016567,2]
[354353923,1740441033285,-167.18,0.00016876,2]
[354353925,1740441033296,-908.59,0.00016959,2]
[354353927,1740441033306,-1000.0,0.00017116,2]
[354353929,1740441033320,-174.71037224,0.000172,2]
[354353931,1740441033331,-155.16,0.00017466,2]
[354353933,1740441033342,-48661.58840373,0.00017688,3]
[354353935,1740441033354,-399.74,0.000178,2]
[354353938,1740441033366,-495.13,0.00017808,2]
[354353940,1740441033377,-200.0,0.00018082,2]
[354353942,1740441033388,-165.54,0.00018133,2]
[354353944,1740441033399,-1171.44903281,0.00018233,2]
[354353946,1740441033409,-9230.55479087,0.00018233,2]
[354353948,1740441033420,-584.47025823,0.0001849,2]
[354353950,1740441033431,-155.16,0.00018493,2]
[354353951,1740441033442,-8500.0,0.0001863,2]
[354353954,1740441033454,-8134.33451,0.0001863,2]
[354353955,1740441033465,-300.0,0.00018999,2]
[354353958,1740441033476,-77274.1190318,0.00019,2]
[354353959,1740441033486,-2658.47497331,0.00019,2]
[354353962,1740441033501,-217.6886854,0.00019,2]
[354353964,1740441033512,-7603.84644884,0.00019,2]
[354353966,1740441033523,-961.61,0.00019,2]
[354353968,1740441033533,-3716.41495167,0.00019,2]
[354353970,1740441033544,-10348.45630615,0.00019,2]
[354353972,1740441033554,-1000.0,0.0001902,2]
[354353974,1740441033565,-5081.21375379,0.0001911,2]
[354353975,1740441033575,-1000.0,0.00019178,7]
[354353977,1740441033585,-150.0,0.00019178,2]
[354353979,1740441033595,-167.18,0.00019286,2]
[354353981,1740441033605,-300.0,0.00019299,2]
[354353984,1740441033614,-187377.86208344,0.000193,2]
[354353986,1740441033627,-34731.65700666,0.000193,2]
[354353988,1740441033636,-268.88,0.00019397,30]
[354353990,1740441033646,-1000.0,0.00019452,7]
[354353992,1740441033656,-500.0,0.00019467,2]
[354353994,1740441033666,-1800.0,0.000195,2]
[354353996,1740441033676,-1800.0,0.000195,2]
[354353998,1740441033686,-1800.0,0.000195,2]
[354354000,1740441033695,-1800.0,0.000195,2]
[354354002,1740441033705,-1800.0,0.000195,2]
[354354004,1740441033714,-1800.0,0.000195,2]
[354354006,1740441033725,-1800.0,0.000195,2]
[354354008,1740441033735,-1800.0,0.000195,2]
[354354010,1740441033745,-1800.0,0.000195,2]
[354354012,1740441033755,-1800.0,0.000195,2]
[354354014,1740441033765,-1800.0,0.000195,2]
[354354016,1740441033775,-1800.0,0.000195,2]
[354354018,1740441033786,-1800.0,0.000195,2]
[354354020,1740441033797,-2948.32249431,0.000195,2]
[354354022,1740441033807,-500.0,0.000195,2]
[354354024,1740441033820,-500.0,0.000195,2]
[354354026,1740441033835,-1000.0,0.000195,2]
[354354028,1740441033846,-1000.0,0.000195,2]
[354354030,1740441033856,-1000.0,0.000195,2]
[354354032,1740441033868,-593.07921284,0.000195,2]
[354354034,1740441033879,-1000.0,0.000195,2]
[354354035,1740441033890,-767.60956964,0.000195,2]